bitfinex-derivatives/quotes_BTCF0:USTF0_20250308
["timestamp","ask_amount","ask_price","bid_price","bid_amount"]
[1741447513187,0.01047586,86519.0,86518.0,1.19336509]
[1741447514189,0.01147586,86519.0,86518.0,1.19136509]
[1741447514684,0.01147586,86519.0,86518.0,1.19236509]
[1741447514876,0.00974138,86519.0,86518.0,1.19236509]
[1741447515674,0.0313,86521.0,86520.0,0.115601]
[1741447516085,0.0313,86521.0,86520.0,1.12796249]
[1741447517281,0.04099617,86522.0,86521.0,0.1155996]
[1741447517480,0.04099617,86522.0,86521.0,1.12796109]
[1741447518692,0.04099617,86522.0,86521.0,1.12896109]
[1741447524487,0.04099617,86522.0,86521.0,1.12996109]
[1741447528390,0.04099617,86522.0,86521.0,1.13196109]
[1741447529292,0.04099617,86522.0,86521.0,1.16466109]
[1741447529498,0.04099617,86522.0,86521.0,1.16366109]
[1741447529685,0.04099617,86522.0,86521.0,1.16566109]
[1741447530285,7e-08,86522.0,86521.0,1.16566109]
[1741447530595,0.00017341,86527.0,86526.0,0.115593]
[1741447530799,0.00017341,86527.0,86526.0,1.48875449]
[1741447531301,0.00017341,86527.0,86526.0,1.52085449]
[1741447533785,0.00017341,86527.0,86526.0,1.52385449]
[1741447536505,0.00905958,86527.0,86526.0,1.52385449]
[1741447540403,0.00905958,86527.0,86526.0,1.52885449]
[1741447540604,0.00905958,86527.0,86526.0,1.16805449]
[1741447540908,0.00905958,86527.0,86526.0,1.52885449]
[1741447542602,0.00905958,86527.0,86526.0,1.16805449]
[1741447542898,0.00905958,86527.0,86526.0,1.52885449]
[1741447544798,0.00905958,86527.0,86526.0,1.52585449]
[1741447545011,0.00905958,86527.0,86526.0,1.52885449]
[1741447545398,0.00905958,86527.0,86526.0,1.49675449]
[1741447546003,0.00905958,86527.0,86526.0,0.123593]
[1741447546705,0.12465118,86527.0,86526.0,0.008]
[1741447546914,0.00905958,86527.0,86526.0,0.123593]
[1741447547101,0.20685958,86527.0,86526.0,0.123593]
[1741447547301,0.10685958,86527.0,86526.0,0.123593]
[1741447548810,0.10685958,86527.0,86526.0,0.118593]
[1741447549011,0.10685958,86527.0,86526.0,0.123593]
[1741447550612,0.11821785,86527.0,86526.0,0.123593]
[1741447550810,0.11821785,86527.0,86526.0,0.120593]
[1741447551015,0.11821785,86527.0,86526.0,0.121593]
[1741447551611,0.21821785,86527.0,86526.0,0.006]
[1741447552311,0.21821785,86527.0,86526.0,0.11676023]
[1741447552510,0.21821785,86527.0,86526.0,0.00116723]
[1741447552706,0.11821785,86527.0,86526.0,0.115593]
[1741447552907,0.12023044,86527.0,86525.0,0.1155938]
[1741447553319,0.12023044,86527.0,86526.0,0.003]
[1741447553516,0.12023044,86527.0,86526.0,0.118593]
[1741447554017,0.17323044,86527.0,86526.0,0.068593]
[1741447554317,0.12123044,86527.0,86526.0,0.115593]
[1741447555015,0.11921785,86527.0,86526.0,0.115593]
[1741447555217,0.12123043,86527.0,86525.0,0.1155935]
[1741447555417,0.12123043,86527.0,86526.0,0.115593]
[1741447555812,0.12023043,86527.0,86526.0,0.115593]
[1741447556114,0.1155944,86525.0,86520.0,0.0577999]
[1741447556313,0.3608,86521.0,86520.0,0.115601]
[1741447561212,0.3608,86521.0,86520.0,0.116601]
[1741447564021,0.3608,86522.0,86520.0,0.001]
[1741447564218,0.0632,86521.0,86520.0,0.1744014]
[1741447565523,0.0632,86521.0,86520.0,0.1734014]
[1741447565720,0.0632,86521.0,86520.0,0.1744014]
[1741447565919,0.0632,86521.0,86520.0,0.2368014]
[1741447566423,0.0632,86521.0,86520.0,0.2378014]
[1741447566722,0.0632,86521.0,86520.0,0.2368014]
[1741447566921,0.0632,86521.0,86520.0,0.2378014]
[1741447567123,0.0632,86521.0,86520.0,0.2388014]
[1741447569217,0.0632,86521.0,86520.0,0.2368014]
[1741447569410,0.0632,86521.0,86520.0,0.2378014]
[1741447571725,0.00905958,86527.0,86526.0,0.115593]
[1741447571920,0.00905958,86527.0,86526.0,1.12795449]
[1741447572320,0.00905958,86527.0,86526.0,1.18795449]
[1741447573120,0.01005958,86527.0,86526.0,1.18795449]
[1741447576125,8e-08,86527.0,86526.0,1.18795449]
[1741447577018,0.00173398,86545.0,86526.0,1.43336149]
[1741447577218,0.00173398,86545.0,86544.0,1.12793039]
[1741447577420,0.062,86557.0,86544.0,1.01236149]
[1741447577621,0.07079158,86557.0,86556.0,0.1155529]
[1741447578125,0.07079158,86557.0,86556.0,0.2086529]
[1741447579720,0.07079158,86557.0,86556.0,1.22101439]
[1741447580828,0.07079158,86557.0,86556.0,0.1155529]
[1741447581729,0.17479158,86557.0,86556.0,0.1155529]
[1741447581916,0.17479158,86557.0,86556.0,0.0655529]
[1741447582631,0.22479158,86557.0,86556.0,0.0655529]
[1741447582829,0.15929158,86557.0,86554.0,0.0577772]
[1741447583130,0.07779158,86557.0,86554.0,0.0577772]
[1741447583326,0.26979158,86557.0,86556.0,0.1155529]
[1741447583520,0.07779158,86557.0,86556.0,0.1155529]
[1741447584630,0.05,86552.0,86533.0,0.00173334]
[1741447584824,0.3608,86551.0,86550.0,0.1155609]
[1741447585016,0.3608,86551.0,86549.0,0.00128]
[1741447585217,0.3608,86551.0,86550.0,0.1155609]
[1741447585726,0.1,86549.0,86539.0,0.0577876]
[1741447585930,0.1155639,86548.0,86541.0,1.01236149]
[1741447586124,0.1155639,86548.0,86543.0,0.1155697]
[1741447586125,0.05,86548.0,86543.0,0.1155697]
[1741447586626,0.1155652,86547.0,86543.0,0.1155697]
[1741447586932,0.05,86548.0,86541.0,0.1155727]
[1741447586933,0.3608,86544.0,86542.0,0.1155714]
[1741447587122,0.4608,86544.0,86510.0,0.34665906]
[1741447587323,0.1155706,86543.0,86540.0,0.1155738]
[1741447587723,0.36140001,86544.0,86543.0,0.1155702]
[1741447587925,0.3608,86544.0,86543.0,0.0655702]
[1741447588334,0.37212548,86548.0,86537.0,0.0312]
[1741447588533,0.04,86545.0,86544.0,1.12793039]
[1741447588731,0.01132548,86548.0,86547.0,1.12792639]
[1741447589043,0.37460903,86550.0,86549.0,0.1155622]
[1741447589427,0.3608,86550.0,86549.0,0.1155622]
[1741447590028,0.3608,86550.0,86549.0,1.12792369]
[1741447590828,0.3628,86550.0,86549.0,1.12792369]
[1741447591635,0.002,86550.0,86549.0,1.12792369]
[1741447591829,0.002,86550.0,86549.0,1.19232369]
[1741447592433,0.004,86550.0,86549.0,1.19232369]
[1741447592938,0.004,86550.0,86549.0,1.14232369]
[1741447593235,0.004,86550.0,86549.0,1.07792369]
[1741447593441,0.004,86550.0,86549.0,0.0655622]
[1741447593739,0.004,86550.0,86549.0,1.07792369]
[1741447596030,0.004,86550.0,86549.0,1.12792369]
[1741447597129,0.004,86550.0,86549.0,1.19082369]
[1741447597736,0.004,86550.0,86549.0,1.20263857]
[1741447605341,0.004,86550.0,86549.0,1.13973857]
[1741447605847,0.004,86550.0,86549.0,1.17243857]
[1741447610046,0.0324,86555.0,86554.0,0.1155556]
[1741447610244,0.0324,86555.0,86554.0,1.48871709]
[1741447610947,0.0324,86555.0,86554.0,1.55291709]
[1741447612140,0.0354,86555.0,86554.0,1.55291709]
[1741447612744,0.0394,86555.0,86554.0,1.55291709]
[1741447617244,0.37234239,86572.0,86564.0,0.1155422]
[1741447617440,0.00884319,86565.0,86564.0,1.12790369]
[1741447617645,0.00017331,86565.0,86564.0,1.12790369]
[1741447618050,0.00017331,86565.0,86564.0,1.15850369]
[1741447618552,0.00017331,86565.0,86564.0,1.19000369]
[1741447618954,0.03187331,86565.0,86564.0,1.19000369]
[1741447619540,0.03187331,86565.0,86564.0,1.19100369]
[1741447619541,0.03787331,86565.0,86564.0,1.19100369]
[1741447619745,0.03787331,86565.0,86564.0,1.12890369]
[1741447620054,0.07027331,86565.0,86564.0,1.12890369]
[1741447620457,0.07127331,86565.0,86564.0,1.12890369]
[1741447620755,0.0801242,86565.0,86564.0,1.12890369]
[1741447621654,0.0801242,86565.0,86564.0,1.19380369]
[1741447622151,0.0477242,86565.0,86564.0,1.19380369]
[1741447623946,0.3608,86583.0,86582.0,0.1155182]
[1741447625954,0.3608,86583.0,86582.0,0.0655182]
[1741447626463,0.36968119,86583.0,86578.0,0.0577612]
[1741447626651,0.0323,86582.0,86581.0,0.1155195]
[1741447627053,0.0648,86582.0,86581.0,0.1155195]
[1741447629361,0.0648,86582.0,86581.0,0.0655195]
[1741447630553,0.0648,86582.0,86581.0,1.07788099]
[1741447632062,0.0648,86582.0,86579.0,0.0577611]
[1741447632263,0.0648,86582.0,86581.0,0.1155195]
[1741447633051,0.4256,86582.0,86581.0,0.1155195]
[1741447633253,0.4256,86582.0,86578.0,0.1155227]
[1741447633461,0.4256,86582.0,86578.0,0.0577617]
[1741447633750,0.4256,86582.0,86581.0,0.1155195]
[1741447634255,0.4266,86582.0,86581.0,0.1155195]
[1741447635762,0.0658,86582.0,86581.0,0.1155195]
[1741447636667,0.0658,86582.0,86581.0,0.1473195]
[1741447637570,0.0648,86582.0,86581.0,0.1473195]
[1741447637758,0.0658,86582.0,86581.0,0.1473195]
[1741447638552,0.07714576,86582.0,86581.0,0.1155195]
[1741447639470,0.19266396,86582.0,86580.0,0.1155196]
[1741447639670,0.07714576,86582.0,86581.0,0.1155195]
[1741447640970,0.0658,86582.0,86581.0,0.1155195]
[1741447641469,0.07755138,86582.0,86581.0,0.1155195]
[1741447644162,0.0648,86582.0,86581.0,0.1155195]
[1741447644363,0.0658,86582.0,86581.0,0.1155195]
[1741447645163,0.07766496,86582.0,86581.0,0.1155195]
[1741447646573,0.19318326,86582.0,86576.0,0.0312]
[1741447646764,0.19318326,86582.0,86579.0,0.1155216]
[1741447646963,0.07766496,86582.0,86577.0,1.12924579]
[1741447647164,0.1155212,86580.0,86577.0,0.1155243]
[1741447647469,0.2105222,86579.0,86578.0,0.0328]
[1741447648072,0.1155275,86575.0,86574.0,0.00017331]
[1741447648374,0.1155275,86575.0,86566.0,0.1155392]
[1741447648375,0.5263275,86575.0,86566.0,0.1155392]
[1741447648561,0.0635,86574.0,86565.0,1.01236149]
[1741447648767,0.1155375,86568.0,86565.0,1.01236149]
[1741447648974,0.1155421,86565.0,86562.0,0.1483445]
[1741447649166,0.0635,86564.0,86562.0,0.0328]
[1741447649472,0.1155435,86563.0,86561.0,0.3608]
[1741447649659,0.4763453,86562.0,86559.0,0.0577741]
[1741447649864,0.1155462,86561.0,86557.0,0.1155512]
[1741447650162,0.0635,86562.0,86561.0,0.1155462]
[1741447650359,0.0306,86562.0,86559.0,0.00132]
[1741447650558,0.0306,86562.0,86555.0,0.03408]
[1741447650768,0.1,86559.0,86554.0,0.20813673]
[1741447650968,0.2155542,86555.0,86554.0,0.20813673]
[1741447651161,0.42578,86558.0,86557.0,0.1155516]
[1741447651472,0.4251,86558.0,86556.0,0.115552]
[1741447651672,0.4251,86558.0,86557.0,0.0322]
[1741447652464,0.1155537,86556.0,86554.0,0.00017331]
[1741447652664,0.0332,86555.0,86554.0,0.00017331]
[1741447653065,0.2477542,86555.0,86554.0,0.00017331]
[1741447653572,0.1467542,86555.0,86547.0,0.0577822]
[1741447653767,0.1467542,86555.0,86436.0,4.5]
[1741447653768,0.1155649,86547.0,86536.0,0.24016342]
[1741447653966,0.1938049,86547.0,86537.0,0.032]
[1741447654273,0.3221049,86547.0,86537.0,0.032]
[1741447654659,0.3221049,86547.0,86538.0,0.00017331]
[1741447654860,0.1155723,86542.0,86537.0,0.115577]
[1741447655068,0.1155796,86537.0,86530.0,0.1155872]
[1741447655270,0.0629,86536.0,86535.0,0.1155809]
[1741447655662,0.0609,86536.0,86535.0,0.1155809]
[1741447656373,0.0559,86536.0,86535.0,0.1155809]
[1741447656674,0.0489,86536.0,86535.0,0.1155809]
[1741447656973,0.06047095,86536.0,86535.0,0.1155809]
[1741447657174,0.0489,86536.0,86535.0,0.1155809]
[1741447657374,0.0489,86536.0,86535.0,0.1225809]
[1741447658576,0.0489,86536.0,86535.0,0.007]
[1741447658776,0.0489,86536.0,86535.0,0.1225809]
[1741447659473,0.0326,86536.0,86535.0,0.1225809]
[1741447659973,0.04130427,86536.0,86535.0,0.1225809]
[1741447660173,0.04130427,86536.0,86535.0,0.1838809]
[1741447660871,0.04130427,86536.0,86535.0,0.1908809]
[1741447661179,0.04230427,86536.0,86535.0,0.1908809]
[1741447665976,0.00970427,86536.0,86535.0,0.1908809]
[1741447666182,0.00970427,86536.0,86535.0,1.20324239]
[1741447672689,0.00870427,86536.0,86535.0,1.19624239]
[1741447672987,0.001,86536.0,86535.0,1.26103269]
[1741447674294,0.002,86536.0,86535.0,1.26003269]
[1741447676691,0.001,86536.0,86535.0,1.25303269]
[1741447676885,0.002,86536.0,86535.0,1.26003269]
[1741447679194,0.001,86536.0,86535.0,1.25903269]
[1741447681485,0.04155544,86539.0,86538.0,0.1155769]
[1741447687299,0.04155544,86539.0,86538.0,0.1195769]
[1741447688187,0.04255544,86539.0,86538.0,0.1255769]
[1741447689097,0.14255544,86539.0,86538.0,0.1255769]
[1741447689296,0.04255544,86539.0,86538.0,0.1255769]
[1741447689500,0.14255544,86539.0,86538.0,0.1255769]
[1741447690086,0.12079544,86539.0,86538.0,0.1255769]
[1741447691000,0.13233102,86539.0,86538.0,0.1255769]
[1741447694802,0.04255544,86539.0,86538.0,1.13793839]
[1741447695300,0.00965544,86539.0,86538.0,1.49873839]
[1741447695597,0.00017331,86544.0,86543.0,0.1155702]
[1741447695793,0.00017331,86544.0,86543.0,1.12793169]
[1741447696190,0.008734,86544.0,86543.0,1.13939892]
[1741447696396,0.00017331,86544.0,86543.0,1.20239892]
[1741447697300,0.00017331,86544.0,86543.0,1.20939892]
[1741447699403,0.00904116,86544.0,86543.0,1.20939892]
[1741447699605,0.00017331,86544.0,86543.0,1.20939892]
[1741447703903,0.00017331,86544.0,86543.0,1.57019892]
[1741447706709,0.00904336,86544.0,86543.0,1.57019892]
[1741447707008,0.00017331,86544.0,86543.0,1.57019892]
[1741447709712,1e-08,86544.0,86543.0,1.72019892]
[1741447711109,0.0634,86565.0,86553.0,1.01236149]
[1741447711110,0.07220932,86565.0,86553.0,1.01236149]
[1741447711415,0.07220932,86565.0,86543.0,0.44226723]
[1741447711416,0.07220932,86565.0,86564.0,1.48870369]
[1741447712213,0.07220932,86565.0,86564.0,1.55060369]
[1741447712614,0.07220932,86565.0,86564.0,1.18980369]
[1741447712814,0.07220932,86565.0,86564.0,1.55060369]
[1741447713614,0.07220932,86565.0,86564.0,1.56198461]
[1741447714821,0.07520932,86565.0,86564.0,1.56198461]
[1741447715827,0.07820932,86565.0,86564.0,1.56198461]
[1741447718337,0.04660932,86565.0,86564.0,1.56198461]
[1741447719241,2e-08,86565.0,86564.0,1.56198461]
[1741447723544,0.001,86565.0,86564.0,1.56198461]
[1741447727047,0.0311,86570.0,86564.0,1.45344241]
[1741447727248,0.0311,86570.0,86569.0,1.12789699]
[1741447730451,0.0311,86570.0,86569.0,1.13289699]
[1741447730854,0.0311,86570.0,86569.0,1.49369699]
[1741447731747,0.0311,86570.0,86569.0,1.49969699]
[1741447732850,0.0311,86570.0,86569.0,0.4873355]
[1741447735355,0.0311,86570.0,86569.0,1.49969699]
[1741447735949,0.0311,86570.0,86569.0,0.4863355]
[1741447736651,0.0311,86570.0,86569.0,0.4803355]
[1741447736856,0.0311,86570.0,86569.0,0.4863355]
[1741447738359,0.0311,86570.0,86569.0,0.4853355]
[1741447739453,0.0311,86570.0,86569.0,0.4863355]
[1741447740651,0.0311,86570.0,86569.0,1.49869699]
[1741447741346,0.0642,86570.0,86569.0,1.49869699]
[1741447741751,0.0642,86570.0,86569.0,1.49369699]
[1741447741951,0.0642,86570.0,86569.0,1.49869699]
[1741447742459,0.0642,86570.0,86569.0,1.52989699]
[1741447742659,0.0642,86570.0,86569.0,1.49869699]
[1741447744560,0.0642,86570.0,86569.0,0.4863355]
[1741447744752,0.0642,86570.0,86569.0,0.4803355]
[1741447744952,0.0642,86570.0,86569.0,0.4853355]
[1741447745959,0.0642,86570.0,86569.0,0.4843355]
[1741447747161,0.0642,86570.0,86569.0,0.008]
[1741447747365,0.1797342,86570.0,86569.0,0.008]
[1741447747555,0.4578942,86570.0,86569.0,0.008]
[1741447748165,0.45990577,86570.0,86569.0,0.1235355]
[1741447748361,0.55990577,86570.0,86569.0,0.1195355]
[1741447748668,0.44437157,86570.0,86567.0,0.057769]
[1741447748866,0.1155369,86568.0,86567.0,0.057769]
[1741447749060,0.1125369,86568.0,86567.0,0.057769]
[1741447750767,0.1155402,86566.0,86565.0,0.1155402]
[1741447751163,0.0935,86567.0,86566.0,0.1155395]
[1741447751553,0.0935,86567.0,86566.0,1.12790099]
[1741447751554,0.0605,86567.0,86566.0,1.12790099]
[1741447751757,0.0605,86567.0,86566.0,1.22000099]
[1741447751961,0.0605,86567.0,86566.0,1.18970099]
[1741447753072,0.0605,86567.0,86566.0,1.20136188]
[1741447754162,0.0605,86567.0,86566.0,1.19170099]
[1741447754863,0.0605,86567.0,86566.0,1.16140099]
[1741447755270,0.0605,86567.0,86566.0,1.19460099]
[1741447755661,0.0605,86567.0,86566.0,1.20611122]
[1741447756374,0.0305,86567.0,86566.0,1.56691122]
[1741447758066,0.001,86568.0,86566.0,1.56691122]
[1741447758067,0.001,86568.0,86567.0,0.1155382]
[1741447758265,0.001,86568.0,86567.0,1.12789969]
[1741447758565,0.0314,86570.0,86567.0,1.15819969]
[1741447758769,0.0314,86570.0,86569.0,1.12789699]
[1741447759374,0.0614,86570.0,86569.0,1.18919699]
[1741447760071,0.0614,86570.0,86569.0,1.54999699]
[1741447760259,0.00854569,86571.0,86569.0,1.54999699]
[1741447760465,0.03,86579.0,86572.0,0.1155315]
[1741447760765,0.03,86579.0,86572.0,1.12789299]
[1741447760960,0.00887783,86573.0,86572.0,1.12789299]
[1741447761166,0.00017331,86573.0,86572.0,1.20605299]
[1741447761972,0.00017331,86573.0,86572.0,1.21943344]
[1741447762673,0.00017331,86573.0,86572.0,1.20605299]
[1741447763671,0.00017331,86573.0,86572.0,1.20805299]
[1741447765378,0.00017331,86573.0,86572.0,1.21405299]
[1741447766967,0.00017331,86573.0,86572.0,1.27495299]
[1741447767365,0.00017331,86573.0,86572.0,1.27695299]
[1741447767971,0.00017331,86573.0,86572.0,1.27795299]
[1741447768177,0.00017331,86573.0,86572.0,1.27895299]
[1741447768676,1e-08,86573.0,86572.0,1.27895299]
[1741447769275,0.0328,86589.0,86572.0,0.33545561]
[1741447769276,0.00852688,86589.0,86572.0,0.33545561]
[1741447769467,0.031,86598.0,86597.0,0.1154982]
[1741447769667,0.031,86598.0,86597.0,0.4762982]
[1741447769867,0.031,86598.0,86597.0,1.48865969]
[1741447770275,0.031,86598.0,86597.0,1.55175969]
[1741447771866,0.031,86598.0,86597.0,1.56349403]
[1741447772074,0.0628,86598.0,86597.0,1.56349403]
[1741447772677,0.0628,86598.0,86597.0,1.20269403]
[1741447773379,0.0638,86598.0,86597.0,1.20269403]
[1741447773676,0.0638,86598.0,86597.0,1.12785969]
[1741447773880,0.0638,86598.0,86597.0,0.1154982]
[1741447775088,0.4246,86598.0,86597.0,0.1154982]
[1741447775675,0.0638,86598.0,86597.0,0.1154982]
[1741447776487,0.0638,86598.0,86597.0,1.15795969]
[1741447776978,0.032,86598.0,86597.0,1.51875969]
[1741447779582,1e-07,86598.0,86597.0,1.51875969]
[1741447780374,0.00017331,86606.0,86599.0,1.12785699]
[1741447780579,0.00017331,86606.0,86605.0,1.48864899]
[1741447781283,0.00881031,86606.0,86605.0,1.48864899]
[1741447781484,0.00881031,86606.0,86605.0,1.55064899]
[1741447781991,0.01181031,86606.0,86605.0,1.55064899]
[1741447785991,1e-08,86606.0,86605.0,1.55064899]
[1741447787392,0.00100001,86606.0,86605.0,1.55064899]
[1741447788089,0.00100001,86606.0,86605.0,1.70064899]
[1741447788291,1e-08,86606.0,86605.0,1.70064899]
[1741447789493,1e-08,86606.0,86605.0,1.55064899]
[1741447790380,0.00885011,86614.0,86605.0,1.55064899]
[1741447790585,0.00885011,86614.0,86613.0,1.48863829]
[1741447791494,0.00885011,86614.0,86613.0,1.55183829]
[1741447792795,0.04065011,86614.0,86613.0,1.55183829]
[1741447796603,1e-08,86614.0,86613.0,1.55183829]
[1741447796894,0.0633,86631.0,86630.0,0.1154542]
[1741447798487,0.0633,86631.0,86630.0,1.13956458]
[1741447799994,0.0633,86631.0,86630.0,1.14056458]
[1741447800793,0.0633,86631.0,86630.0,0.12820309]
[1741447800997,0.0633,86631.0,86630.0,0.1164542]
[1741447803903,0.1787528,86631.0,86630.0,0.001]
[1741447804099,0.1797528,86631.0,86630.0,0.001]
[1741447804291,0.1787528,86631.0,86630.0,0.001]
[1741447804492,0.2787528,86631.0,86630.0,0.001]
[1741447804698,0.1787528,86631.0,86630.0,0.001]
[1741447805005,0.3287528,86631.0,86630.0,0.001]
[1741447805504,0.1633,86631.0,86630.0,0.002]
[1741447805704,0.1633,86631.0,86630.0,0.1174542]
[1741447805705,0.2191528,86631.0,86630.0,0.1174542]
[1741447806006,0.2191528,86631.0,86630.0,0.002]
[1741447806199,0.1037,86631.0,86630.0,0.1174542]
[1741447806500,0.2191528,86631.0,86630.0,0.1174542]
[1741447806707,0.2191528,86631.0,86630.0,0.002]
[1741447807207,0.1037,86631.0,86630.0,0.1174542]
[1741447807995,0.1787528,86631.0,86630.0,0.1174542]
[1741447808202,0.0633,86631.0,86630.0,0.1174542]
[1741447808502,0.1787528,86631.0,86630.0,0.002]
[1741447808694,0.0633,86631.0,86630.0,0.002]
[1741447808900,0.14242,86631.0,86630.0,0.1174542]
[1741447811000,0.0633,86631.0,86630.0,0.1174542]
[1741447811200,0.0633,86631.0,86630.0,0.002]
[1741447811201,0.1787528,86631.0,86630.0,0.002]
[1741447811510,0.1787528,86631.0,86630.0,0.1174542]
[1741447812105,0.1787528,86631.0,86630.0,0.002]
[1741447812512,0.1787528,86631.0,86630.0,0.1174542]
[1741447814211,0.1787528,86631.0,86630.0,0.002]
[1741447814416,0.1787528,86631.0,86630.0,0.1174542]
[1741447814909,0.0633,86631.0,86630.0,0.1174542]
[1741447815900,0.0633,86631.0,86630.0,0.1805542]
[1741447816408,0.0633,86631.0,86630.0,0.1498542]
[1741447817306,0.0633,86631.0,86630.0,0.1174542]
[1741447818309,0.0633,86631.0,86630.0,0.1778542]
[1741447818816,0.0633,86631.0,86630.0,0.1478542]
[1741447820619,0.0633,86631.0,86630.0,0.0324]
[1741447821111,0.1787528,86631.0,86630.0,0.002]
[1741447821320,0.0633,86631.0,86630.0,0.1174542]
[1741447822011,0.0633,86631.0,86630.0,0.1824542]
[1741447822521,0.1787528,86631.0,86630.0,0.1824542]
[1741447822716,0.0633,86631.0,86630.0,0.1824542]
[1741447823918,0.0633,86631.0,86630.0,1.19481569]
[1741447823919,0.0305,86631.0,86630.0,1.19481569]
[1741447824621,0.0692,86633.0,86632.0,0.1154515]
[1741447824810,0.0692,86633.0,86632.0,1.12781299]
[1741447825212,0.0692,86633.0,86632.0,1.15951299]
[1741447826016,0.0692,86633.0,86632.0,1.19061299]
[1741447827120,0.07772167,86633.0,86632.0,1.19061299]
[1741447827821,0.07772167,86633.0,86632.0,1.19161299]
[1741447828418,0.07772167,86633.0,86632.0,1.19261299]
[1741447830416,0.01177296,86657.0,86652.0,0.1154249]
[1741447830612,0.00068,86656.0,86652.0,1.12778639]
[1741447830808,0.0641,86662.0,86652.0,1.12778639]
[1741447831025,0.01048346,86653.0,86652.0,1.12778639]
[1741447831324,0.01048346,86653.0,86652.0,1.19098639]
[1741447831325,0.00173182,86653.0,86652.0,1.19098639]
[1741447832209,0.00017264,86661.0,86652.0,1.19098639]
[1741447832210,0.00017264,86661.0,86652.0,1.08699663]
[1741447832410,0.00017264,86661.0,86660.0,1.12777569]
[1741447833217,0.00017264,86661.0,86660.0,1.18897569]
[1741447834625,0.03027264,86661.0,86660.0,1.18897569]
[1741447835622,0.00017264,86661.0,86660.0,0.1766142]
[1741447835818,0.00017264,86661.0,86660.0,1.18897569]
[1741447836421,0.00017264,86661.0,86660.0,1.18997569]
[1741447837420,0.06207264,86661.0,86660.0,1.18997569]
[1741447837826,0.03097264,86661.0,86660.0,1.18997569]
[1741447839321,0.06207264,86661.0,86660.0,1.18997569]
[1741447839521,0.00017264,86661.0,86660.0,0.1776142]
[1741447839827,0.06177264,86661.0,86660.0,0.1786142]
[1741447840032,0.20878554,86661.0,86660.0,0.002]
[1741447840725,0.56958554,86661.0,86660.0,0.002]
[1741447841718,0.45417264,86661.0,86660.0,0.1174142]
[1741447841925,0.56958554,86661.0,86660.0,0.1174142]
[1741447842324,0.45417264,86661.0,86660.0,0.1174142]
[1741447842829,0.56958554,86661.0,86660.0,0.1174142]
[1741447844132,0.20878554,86661.0,86660.0,0.1164142]
[1741447844336,0.09337264,86661.0,86660.0,0.1174142]
[1741447844931,0.09337264,86661.0,86660.0,1.12977569]
[1741447844932,0.06177264,86661.0,86660.0,1.12977569]
[1741447845130,0.06177264,86661.0,86660.0,1.19287569]
[1741447845436,0.00017264,86661.0,86660.0,1.19287569]
[1741447848733,0.06217264,86661.0,86660.0,1.19287569]
[1741447848939,0.06217264,86661.0,86660.0,1.19187569]
[1741447849242,0.09347264,86661.0,86660.0,0.1795142]
[1741447850231,0.00017264,86661.0,86660.0,1.19387569]
[1741447850638,0.06307264,86661.0,86660.0,1.19387569]
[1741447853533,0.09447264,86661.0,86660.0,1.19387569]
[1741447853930,0.06307264,86661.0,86660.0,1.19387569]
[1741447854828,0.00017264,86661.0,86660.0,1.19387569]
[1741447855629,0.06487264,86661.0,86660.0,1.19387569]
[1741447856844,0.03257264,86661.0,86660.0,1.19387569]
[1741447857040,0.00017264,86661.0,86660.0,1.19387569]
[1741447857237,0.06487264,86661.0,86660.0,1.19387569]
[1741447858032,0.05503337,86662.0,86660.0,1.19387569]
[1741447858033,0.04615,86662.0,86660.0,1.19387569]
[1741447858243,1e-08,86662.0,86661.0,1.14143215]
[1741447858545,1e-08,86662.0,86661.0,1.23723215]
[1741447858848,1e-08,86662.0,86661.0,1.25954923]
[1741447859237,1e-08,86662.0,86661.0,1.5123458]
[1741447860146,1e-08,86662.0,86661.0,1.6623458]
[1741447860343,1e-08,86662.0,86661.0,1.70114782]
[1741447860538,1e-08,86662.0,86661.0,1.70383226]
[1741447860736,1e-08,86662.0,86661.0,1.55383226]
[1741447861045,1e-08,86662.0,86661.0,1.62995072]
[1741447861252,1e-08,86662.0,86661.0,1.92044135]
[1741447861634,0.1,86700.0,86699.0,0.1153623]
[1741447861841,0.10865336,86700.0,86699.0,0.1153623]
[1741447862046,0.13945336,86700.0,86699.0,0.1153623]
[1741447862841,0.20115336,86700.0,86699.0,0.1153623]
[1741447864850,0.20115336,86700.0,86699.0,0.1163623]
[1741447865239,0.20126921,86700.0,86699.0,0.1163623]
[1741447865641,0.20126921,86700.0,86699.0,0.1183623]
[1741447865853,0.20126921,86700.0,86699.0,0.0013]
[1741447865854,0.82743021,86700.0,86699.0,0.0013]
[1741447866042,0.1153716,86692.0,86691.0,0.00017311]
[1741447866242,0.4761716,86692.0,86691.0,0.00017311]
[1741447866746,0.60216,86692.0,86687.0,0.1153775]
[1741447867043,0.032,86691.0,86690.0,0.1153743]
[1741447867447,0.032,86691.0,86684.0,0.0576908]
[1741447867655,0.1153769,86688.0,86684.0,0.0576908]
[1741447867946,0.1153769,86688.0,86677.0,0.0576957]
[1741447867947,0.1133824,86684.0,86679.0,0.00017311]
[1741447868154,0.2032688,86687.0,86683.0,0.1153836]
[1741447868460,0.0878894,86687.0,86683.0,0.1153836]
[1741447868650,0.1076956,86686.0,86679.0,0.00017311]
[1741447868952,0.1,86679.0,86672.0,0.0577048]
[1741447869258,0.1,86676.0,86670.0,0.20650607]
[1741447869551,0.3608,86677.0,86676.0,0.1154045]
[1741447869752,0.3608,86677.0,86673.0,0.0577039]
[1741447869753,0.3608,86677.0,86674.0,0.0577033]
[1741447870049,0.1314,86676.0,86675.0,0.1154058]
[1741447870447,0.0314,86676.0,86675.0,0.1154058]
[1741447870843,0.0626,86676.0,86670.0,0.20650607]
[1741447871042,0.1154072,86674.0,86672.0,0.115409]
[1741447871248,0.0924,86673.0,86672.0,0.115409]
[1741447872946,0.4532,86673.0,86672.0,0.115409]
[1741447874248,0.4542,86673.0,86672.0,0.115409]
[1741447878057,0.4542,86673.0,86668.0,0.0577074]
[1741447878261,0.4542,86673.0,86672.0,0.1154098]
[1741447879248,0.5542,86673.0,86672.0,0.1154098]
[1741447879561,0.4542,86673.0,86672.0,0.1154098]
[1741447880465,0.4562,86673.0,86672.0,0.1154098]
[1741447880864,0.5562,86673.0,86672.0,0.1154098]
[1741447881053,0.4562,86673.0,86672.0,0.1154098]
[1741447881757,0.1154151,86668.0,86667.0,0.00017311]
[1741447882262,0.1654151,86668.0,86667.0,0.00017311]
[1741447882955,0.2277151,86668.0,86667.0,0.00017311]
[1741447883360,0.3777151,86668.0,86667.0,0.00017311]
[1741447883657,0.0577149,86657.0,86652.0,0.1154359]